bitfinex/quotes_BTCUSD_20250422
["timestamp","ask_amount","ask_price","bid_price","bid_amount"]
[1745332590390,0.00046013,90442.0,90421.0,0.0022114]
[1745332591003,0.00046013,90442.0,90430.0,0.31757701]
[1745332591176,0.00046013,90442.0,90431.0,0.00221137]
[1745332591384,0.00046013,90442.0,90430.0,0.31757701]
[1745332591584,0.00046013,90442.0,90432.0,0.00221137]
[1745332592565,0.00046013,90442.0,90420.0,0.31757701]
[1745332592769,0.00046013,90442.0,90421.0,0.03285747]
[1745332593005,0.00046013,90442.0,90421.0,0.00221136]
[1745332593166,0.00036013,90442.0,90422.0,0.03064919]
[1745332593366,0.00036013,90442.0,90420.0,0.31757701]
[1745332593699,0.00036013,90442.0,90411.0,0.01298757]
[1745332593700,0.00036013,90442.0,90421.0,0.03065416]
[1745332593921,0.04157321,90446.0,90420.0,0.31757701]
[1745332594098,0.11375594,90445.0,90421.0,0.03065436]
[1745332595843,0.01105717,90439.0,90421.0,0.03065436]
[1745332596053,0.0481,90437.0,90412.0,0.03067428]
[1745332596271,0.34,90435.0,90410.0,0.31757701]
[1745332596415,0.45375594,90435.0,90410.0,0.31757701]
[1745332596835,0.0472,90434.0,90410.0,0.31757701]
[1745332597038,0.20271253,90433.0,90410.0,0.01324468]
[1745332597243,0.33491498,90433.0,90400.0,0.31757701]
[1745332597442,0.11375594,90433.0,90410.0,0.31757701]
[1745332598206,0.01105815,90431.0,90400.0,0.33055521]
[1745332598399,0.11375594,90430.0,90401.0,0.03076463]
[1745332598595,0.0472,90429.0,90401.0,0.03076463]
[1745332598842,0.11375594,90428.0,90401.0,0.03076463]
[1745332599225,0.11375594,90428.0,90400.0,0.0129782]
[1745332599226,0.4353,90411.0,90400.0,0.0129782]
[1745332599435,0.01106194,90400.0,90368.0,0.11248]
[1745332599644,0.01106231,90397.0,90363.0,0.0008468]
[1745332599856,0.3881,90396.0,90370.0,0.31757701]
[1745332600057,0.11375594,90395.0,90370.0,0.31757701]
[1745332600273,0.12481849,90395.0,90370.0,0.31757701]
[1745332600479,0.0110628,90393.0,90370.0,0.31757701]
[1745332600676,0.11375594,90393.0,90381.0,0.00086013]
[1745332601757,0.10675594,90393.0,90381.0,0.00086013]
[1745332601970,0.00837805,90393.0,90382.0,0.00221272]
[1745332602172,0.0481,90396.0,90381.0,0.00086013]
[1745332604727,0.05630162,90396.0,90381.0,0.00086013]
[1745332604966,0.04630162,90396.0,90381.0,0.00086013]
[1745332605442,0.15848,90407.0,90386.0,0.31757701]
[1745332605879,0.11248,90418.0,90398.0,0.34]
[1745332606287,0.01105876,90426.0,90387.0,0.11375594]
[1745332606288,0.01105876,90426.0,90401.0,0.34]
[1745332606511,0.11375594,90425.0,90401.0,0.34]
[1745332607121,0.11375594,90425.0,90402.0,0.03077286]
[1745332607329,0.11375594,90425.0,90401.0,0.34]
[1745332607723,0.11375594,90425.0,90400.0,0.31757701]
[1745332608511,0.23223922,90424.0,90400.0,0.31757701]
[1745332608682,0.11375594,90423.0,90400.0,0.31757701]
[1745332609450,0.10675594,90423.0,90400.0,0.31757701]
[1745332609673,0.10675594,90423.0,90377.0,0.01265113]
[1745332609825,0.01105986,90417.0,90390.0,0.31757701]
[1745332610036,0.11375594,90416.0,90400.0,0.31757701]
[1745332612846,0.01106023,90414.0,90400.0,0.31757701]
[1745332613051,0.0497,90415.0,90400.0,0.31757701]
[1745332615467,0.0497,90415.0,90400.0,0.10148257]
[1745332615906,0.01106047,90412.0,90390.0,0.31757701]
[1745332616127,0.01106255,90395.0,90381.0,0.00086013]
[1745332616344,0.01106353,90387.0,90381.0,0.00086013]
[1745332616546,0.22128117,90383.0,90381.0,0.00086013]
[1745332616751,0.27098176,90383.0,90381.0,0.00086013]
[1745332616986,0.0427,90383.0,90381.0,0.00086013]
[1745332619417,0.11375594,90386.0,90381.0,0.00086013]
[1745332619895,0.0110639,90384.0,90381.0,0.00086013]
[1745332620099,0.11375594,90384.0,90381.0,0.00086013]
[1745332621586,0.00814926,90387.0,90381.0,0.00086013]
[1745332621784,0.4075,90394.0,90381.0,0.00086013]
[1745332623213,0.11432,90406.0,90383.0,0.01454085]
[1745332623425,0.11432,90406.0,90396.0,0.31757701]
[1745332623607,0.11432,90406.0,90390.0,0.31757701]
[1745332624874,0.11432,90406.0,90381.0,0.35375037]
[1745332624875,0.23624591,90406.0,90381.0,0.35375037]
[1745332625085,0.01106145,90404.0,90381.0,0.35375037]
[1745332625351,0.23228803,90405.0,90381.0,0.35375037]
[1745332625554,0.22122866,90405.0,90381.0,0.35375037]
[1745332625731,0.46853206,90406.0,90381.0,0.35375037]
[1745332625993,0.23624591,90406.0,90382.0,0.00221245]
[1745332626218,0.12248997,90406.0,90390.0,0.31757701]
[1745332629465,0.00816997,90406.0,90390.0,0.31757701]
[1745332629668,0.4075,90421.0,90397.0,0.40414085]
[1745332629871,0.01105827,90430.0,90407.0,0.31757701]
[1745332630074,0.22117587,90426.0,90408.0,0.03296293]
[1745332630257,0.23223185,90427.0,90409.0,0.03075107]
[1745332630462,0.01105864,90427.0,90410.0,0.00221187]
[1745332630680,0.23223096,90428.0,90410.0,0.00221187]
[1745332630879,0.01105803,90432.0,90410.0,0.00221187]
[1745332631054,0.01105791,90433.0,90410.0,0.01510225]
[1745332631255,0.22117877,90425.0,90411.0,0.0307315]
[1745332631462,0.22118287,90423.0,90411.0,0.03119163]
[1745332631699,0.22118287,90423.0,90412.0,0.0307315]
[1745332631926,0.22119058,90420.0,90412.0,0.0307315]
[1745332632104,0.22120482,90414.0,90412.0,0.0307315]
[1745332632332,0.22101869,90414.0,90412.0,0.0307315]
[1745332632543,0.21401869,90414.0,90412.0,0.0307315]
[1745332632826,0.21401869,90414.0,90411.0,0.00046013]
[1745332632827,0.22120957,90412.0,90411.0,0.00046013]
[1745332633026,0.33496551,90412.0,90411.0,0.00046013]
[1745332634838,0.22120957,90412.0,90411.0,0.00046013]
[1745332635966,0.33496551,90412.0,90411.0,0.00046013]
[1745332636166,0.43166551,90412.0,90411.0,0.00046013]
[1745332636340,1.17916551,90412.0,90411.0,0.00046013]
[1745332640270,1.17216551,90412.0,90411.0,0.00046013]
[1745332641706,0.73546551,90412.0,90411.0,0.00046013]
[1745332642409,0.001,90414.0,90411.0,0.00046013]
[1745332647018,0.11375594,90413.0,90411.0,0.00046013]
[1745332647223,0.22120957,90412.0,90411.0,0.00046013]
[1745332647396,0.11375594,90412.0,90411.0,0.00046013]
[1745332647990,0.10675594,90412.0,90411.0,0.00046013]
[1745332649599,0.32796551,90412.0,90411.0,0.00046013]
[1745332649796,0.10675594,90412.0,90411.0,0.00046013]
[1745332650429,0.001,90414.0,90411.0,0.00146013]
[1745332650699,0.001,90414.0,90413.0,0.42895659]
[1745332650873,0.03105717,90439.0,90413.0,0.45975356]
[1745332651099,0.11375594,90438.0,90414.0,0.3730087]
[1745332651275,0.11375594,90438.0,90415.0,0.03079697]
[1745332651713,0.12481323,90438.0,90415.0,0.03079697]
[1745332652046,0.11375594,90438.0,90415.0,0.03079697]
[1745332652247,0.11375594,90438.0,90412.0,0.03079697]
[1745332652563,0.12481323,90438.0,90413.0,0.03079697]
[1745332652803,0.12481323,90438.0,90412.0,0.03079697]
[1745332652945,0.11375594,90438.0,90413.0,0.03079697]
[1745332653151,0.11375594,90438.0,90414.0,0.03079697]
[1745332653348,0.11375594,90438.0,90411.0,0.34046013]
[1745332653349,0.01105766,90435.0,90415.0,0.03079697]
[1745332653596,0.12481323,90438.0,90416.0,0.03079697]
[1745332653789,0.12481323,90438.0,90411.0,0.00046013]
[1745332653790,0.02846981,90439.0,90420.0,0.31757701]
[1745332653966,0.02846981,90439.0,90421.0,0.00221157]
[1745332654399,0.02846981,90439.0,90422.0,0.03078232]
[1745332654567,0.02846981,90439.0,90421.0,0.03077694]
[1745332655034,0.02846981,90439.0,90415.0,0.01454085]
[1745332655238,0.02846981,90439.0,90416.0,0.34]
[1745332655413,0.02846981,90439.0,90416.0,0.37078229]
[1745332655612,0.02846981,90439.0,90417.0,0.03078229]
[1745332655859,0.02146981,90439.0,90421.0,0.34]
[1745332656783,0.02146981,90439.0,90416.0,0.34]
[1745332657033,0.02146981,90439.0,90421.0,0.34]
[1745332658013,0.02146981,90439.0,90422.0,0.03076242]
[1745332658462,0.02146981,90439.0,90421.0,0.34]
[1745332658900,0.02146981,90439.0,90407.0,0.01454085]
[1745332658901,0.01105778,90434.0,90407.0,0.01454085]
[1745332659025,0.01105742,90437.0,90412.0,0.0307752]
[1745332659026,0.01105815,90431.0,90412.0,0.0307752]
[1745332659230,0.22116519,90431.0,90412.0,0.0307752]
[1745332659448,0.22116554,90430.0,90412.0,0.0307752]
[1745332659683,0.11375594,90433.0,90413.0,0.00221184]
[1745332659884,0.2426135,90439.0,90413.0,0.00221184]
[1745332659885,0.02146981,90439.0,90414.0,0.0307752]
[1745332660061,0.22114952,90437.0,90414.0,0.0307752]
[1745332660489,0.03252698,90439.0,90414.0,0.0307752]
[1745332660490,0.02146981,90439.0,90414.0,0.0307752]
[1745332661081,0.22115062,90437.0,90414.0,0.0307752]
[1745332661283,0.2211524,90436.0,90414.0,0.0307752]
[1745332661486,0.02146981,90439.0,90414.0,0.3707752]
[1745332661826,0.02146981,90439.0,90421.0,0.34]
[1745332662187,0.02146981,90439.0,90422.0,0.0307752]
[1745332662792,0.02146981,90439.0,90415.0,0.0307752]
[1745332663015,0.02146981,90439.0,90416.0,0.0307752]
[1745332663226,0.02146981,90439.0,90415.0,0.0307752]
[1745332663360,0.01446981,90439.0,90416.0,0.0307752]
[1745332663579,0.01446981,90439.0,90420.0,0.02]
[1745332663928,0.01446981,90439.0,90421.0,0.03074496]
[1745332664158,0.006,90439.0,90429.0,0.31757701]
[1745332664289,0.006,90439.0,90430.0,0.00221142]
[1745332664494,0.006,90439.0,90422.0,0.0992]
[1745332667026,0.006,90439.0,90422.0,0.0496]
[1745332667596,0.006,90439.0,90429.0,0.31757701]
[1745332667808,0.006,90439.0,90430.0,0.00221142]
[1745332668042,0.006,90439.0,90422.0,0.0496]
[1745332668891,0.006,90439.0,90421.0,0.34]
[1745332669096,0.006,90439.0,90420.0,0.02]
[1745332669097,0.01105742,90437.0,90420.0,0.02]
[1745332669353,0.22114698,90438.0,90420.0,0.02]
[1745332669354,0.01105729,90438.0,90420.0,0.02]
[1745332669592,0.22115264,90436.0,90420.0,0.02]
[1745332669800,0.006,90439.0,90420.0,0.02]
[1745332670137,0.01705717,90439.0,90420.0,0.02]
[1745332670321,0.01105729,90438.0,90420.0,0.02]
[1745332670524,0.22114906,90437.0,90420.0,0.02]
[1745332670754,0.01105729,90438.0,90420.0,0.02]
[1745332670959,0.23820135,90439.0,90420.0,0.33757701]
[1745332671372,0.01105742,90437.0,90420.0,0.33757701]
[1745332671547,0.01105729,90438.0,90420.0,0.33757701]
[1745332671751,0.22114787,90438.0,90420.0,0.33757701]
[1745332671980,0.006,90439.0,90420.0,0.33757701]
[1745332672153,0.006,90439.0,90429.0,0.31757701]
[1745332672760,0.006,90439.0,90421.0,0.12829679]
[1745332673000,0.006,90439.0,90423.0,0.01454085]
[1745332673149,0.006,90439.0,90422.0,0.34]
[1745332673591,0.006,90439.0,90429.0,0.31757701]
[1745332674019,0.006,90439.0,90421.0,0.34]
[1745332674430,0.006,90439.0,90433.0,0.0001431]
[1745332674641,0.00556871,90439.0,90433.0,0.0001431]
[1745332675801,0.00556871,90439.0,90433.0,0.01241084]
[1745332676023,0.00556871,90439.0,90434.0,0.05211145]
[1745332676247,0.00556871,90439.0,90435.0,0.37074794]
[1745332676688,0.00556871,90439.0,90436.0,0.03074794]
[1745332678785,0.00556871,90439.0,90437.0,0.00221116]
[1745332678990,0.00556871,90439.0,90438.0,0.01675184]
[1745332679201,0.00556871,90439.0,90438.0,0.49904473]
[1745332680244,0.00556871,90439.0,90438.0,0.50004473]
[1745332680673,0.00556871,90439.0,90438.0,0.54994473]
[1745332681767,0.0004234,90449.0,90438.0,1.01584473]
[1745332681975,0.02348319,90489.0,90462.0,0.05]
[1745332682119,0.02348319,90489.0,90453.0,0.34]
[1745332682120,0.02348319,90489.0,90475.0,0.35454085]
[1745332682332,0.02348319,90489.0,90480.0,0.34]
[1745332682532,0.02348319,90489.0,90481.0,0.03074794]
[1745332682863,0.02348319,90489.0,90483.0,0.0468]
[1745332683055,0.02348319,90489.0,90484.0,0.07994794]
[1745332683247,0.02332125,90489.0,90487.0,0.01454085]
[1745332683606,0.02332125,90489.0,90488.0,0.49904473]
[1745332684022,0.02332125,90489.0,90488.0,0.37074794]
[1745332684242,0.02332125,90489.0,90488.0,0.45375594]
[1745332684443,0.02332125,90489.0,90488.0,0.49887725]
[1745332684555,0.01632125,90489.0,90488.0,0.49887725]
[1745332685003,0.01632125,90489.0,90488.0,0.37058046]
[1745332685213,0.01632125,90489.0,90488.0,0.34]
[1745332687299,0.01632125,90489.0,90483.0,0.01222725]
[1745332687636,0.01632125,90489.0,90421.0,0.08895659]
[1745332687637,0.01632125,90489.0,90470.0,0.31757701]
[1745332687798,0.01632125,90489.0,90470.0,0.32995929]
[1745332688486,0.02737231,90489.0,90470.0,0.32995929]
[1745332688656,0.01632125,90489.0,90470.0,0.32995929]
[1745332688862,0.01632125,90489.0,90470.0,0.01238228]
[1745332688863,0.01105302,90473.0,90470.0,0.01238228]
[1745332689067,0.01105253,90477.0,90450.0,0.31757701]
[1745332689283,0.11375594,90476.0,90450.0,0.31757701]
[1745332689454,0.11375594,90476.0,90450.0,0.32982435]
[1745332689811,0.11375594,90476.0,90460.0,0.31757701]
[1745332690441,0.07934625,90495.0,90466.0,0.31757701]
[1745332690648,0.03164625,90495.0,90479.0,0.31757701]
[1745332690863,0.01632125,90489.0,90480.0,0.34]
[1745332691039,0.01632125,90489.0,90481.0,0.01454085]
[1745332691265,0.01632125,90489.0,90483.0,0.01454085]
[1745332691679,0.01632125,90489.0,90484.0,0.00220999]
[1745332691889,0.01632125,90489.0,90483.0,0.01454085]
[1745332692303,0.00932125,90489.0,90483.0,0.01454085]
[1745332692507,0.00932125,90489.0,90485.0,0.01454085]
[1745332692722,0.00932125,90489.0,90487.0,0.01454085]
[1745332692922,0.00932125,90489.0,90488.0,0.46829679]
[1745332694073,0.00932125,90489.0,90488.0,0.35260264]
[1745332694478,0.00932125,90489.0,90488.0,0.01260264]
[1745332694684,0.00932125,90489.0,90471.0,0.34]
[1745332694928,0.00932125,90489.0,90474.0,0.01454085]
[1745332695132,0.00932125,90489.0,90480.0,0.34]
[1745332695510,0.00932125,90489.0,90480.0,0.35223496]
[1745332696568,0.00932125,90489.0,90481.0,0.01454085]
[1745332696746,0.00932125,90489.0,90483.0,0.01454085]
[1745332696941,0.00932125,90489.0,90480.0,0.01223496]
[1745332696942,0.00932125,90489.0,90485.0,0.35454085]
[1745332697165,0.00932125,90489.0,90487.0,0.35454085]
[1745332697431,0.00932125,90489.0,90488.0,0.49882314]
[1745332697966,0.00846999,90508.0,90489.0,0.35454085]
[1745332698220,0.00846999,90508.0,90489.0,0.9423898]
[1745332699896,0.12731483,90500.0,90489.0,0.9423898]
[1745332700590,0.12731483,90500.0,90491.0,0.01454085]
[1745332700795,0.12731483,90500.0,90489.0,0.9423898]
[1745332700796,0.12731483,90500.0,90493.0,0.01454085]
[1745332701050,0.12731483,90500.0,90495.0,0.01454085]
[1745332701235,0.12731483,90500.0,90493.0,0.0489]
[1745332701236,0.12731483,90500.0,90497.0,0.35454085]
[1745332701435,0.12731483,90500.0,90499.0,0.35454085]
[1745332701639,0.12731483,90500.0,90499.0,0.91549958]
[1745332701834,0.12731483,90500.0,90499.0,0.88499679]
[1745332702628,0.12731483,90500.0,90499.0,0.9154842]
[1745332702830,0.12731483,90500.0,90499.0,0.88499679]
[1745332703462,0.12731483,90500.0,90499.0,0.66716484]
[1745332703663,0.12731483,90500.0,90499.0,0.54499679]
[1745332704292,0.12731483,90500.0,90499.0,0.4167]
[1745332704450,0.12731483,90500.0,90499.0,0.43124085]
[1745332704863,0.12731483,90500.0,90484.0,0.4167]
[1745332705072,0.47409301,90540.0,90490.0,0.12829679]
[1745332705267,0.00013793,90518.0,90490.0,0.12829679]
[1745332705862,0.00013793,90518.0,90484.0,0.4167]
[1745332705863,0.11375594,90517.0,90484.0,0.4167]
[1745332706047,0.11375594,90517.0,90491.0,0.34]
[1745332706192,0.00013793,90518.0,90501.0,0.34]
[1745332706397,0.12046958,90522.0,90501.0,0.34]
[1745332706398,0.00348751,90522.0,90501.0,0.34]
[1745332706582,0.4075,90528.0,90501.0,0.34013793]
[1745332706777,0.11375594,90527.0,90501.0,0.34013793]
[1745332707622,0.10675594,90527.0,90501.0,0.00013793]
[1745332708310,0.41589178,90528.0,90512.0,0.01454085]
[1745332708670,0.01696,90530.0,90512.0,0.01454085]
[1745332708671,0.00975178,90530.0,90512.0,0.01454085]
[1745332708873,0.00822548,90528.0,90512.0,0.01454085]
[1745332709072,0.00975178,90530.0,90512.0,0.01454085]
[1745332709289,0.0004233,90537.0,90512.0,0.01454085]
[1745332709418,0.0004233,90537.0,90514.0,0.35454085]
[1745332709641,0.0004233,90537.0,90515.0,0.06344085]
[1745332709832,0.0004233,90537.0,90514.0,0.34]
[1745332710067,0.11375594,90536.0,90514.0,0.34]
[1745332710458,0.0004233,90537.0,90515.0,0.00220945]
[1745332710799,0.0004233,90537.0,90514.0,0.11375594]
[1745332711221,0.0004233,90537.0,90515.0,0.00220918]
[1745332711423,0.0004233,90537.0,90516.0,0.34]
[1745332711625,0.0004233,90537.0,90517.0,0.00220915]
[1745332712467,0.0004233,90537.0,90517.0,0.01474731]
[1745332712849,0.0004233,90537.0,90517.0,0.01253816]
[1745332713022,0.0004233,90537.0,90516.0,0.34]
[1745332713198,0.0002233,90537.0,90516.0,0.34]
[1745332713567,0.0002233,90537.0,90516.0,0.35215446]
[1745332714007,0.0002233,90537.0,90517.0,0.00220915]
[1745332714600,0.0002233,90537.0,90516.0,0.35215446]
[1745332715392,0.01104374,90549.0,90517.0,0.00220915]
[1745332715588,0.22089533,90541.0,90516.0,0.01215446]
[1745332715762,0.12480078,90540.0,90512.0,0.34]
[1745332716012,0.11375594,90540.0,90512.0,0.34]
[1745332716588,0.11375594,90540.0,90501.0,0.34013793]
[1745332716909,0.11375594,90540.0,90507.0,0.00220945]
[1745332717296,0.01104496,90539.0,90501.0,0.34013793]
[1745332717477,0.0110452,90537.0,90501.0,0.34013793]
[1745332717677,0.11375594,90536.0,90501.0,0.00013793]
[1745332717885,0.01104557,90534.0,90501.0,0.11389387]
[1745332718085,0.0499,90532.0,90501.0,0.00013793]
[1745332718292,0.11375594,90531.0,90501.0,0.00013793]
[1745332718506,0.12480188,90531.0,90501.0,0.00013793]
[1745332718756,0.23196999,90529.0,90501.0,0.01250174]
[1745332718960,0.11375594,90528.0,90501.0,0.01250174]
[1745332719172,0.01104667,90525.0,90502.0,0.03067632]
[1745332719377,0.11375594,90524.0,90502.0,0.03067632]
[1745332719584,0.11375594,90523.0,90502.0,0.03067632]
[1745332720886,0.11375594,90523.0,90520.0,0.01104728]
[1745332721560,0.05452165,90532.0,90529.0,0.01104618]
[1745332721779,0.11375594,90531.0,90526.0,0.01104655]
[1745332722197,0.00832165,90532.0,90526.0,0.01104655]
[1745332722427,0.22090304,90538.0,90526.0,0.01104655]
[1745332722428,0.11375594,90531.0,90526.0,0.01104655]
[1745332722642,0.01104606,90530.0,90520.0,0.01104728]
[1745332722851,0.01104606,90530.0,90501.0,0.35236381]
[1745332722852,0.33468091,90529.0,90501.0,0.35236381]
[1745332723059,0.12480212,90529.0,90502.0,0.0306391]
[1745332723264,0.11375594,90529.0,90502.0,0.03284873]
[1745332723481,0.00832,90532.0,90502.0,0.03284873]
[1745332723482,0.00832,90532.0,90503.0,0.0306391]
[1745332723748,0.11375594,90531.0,90529.0,0.01104618]
[1745332723976,0.00846974,90532.0,90529.0,0.01104618]
[1745332724196,0.001,90538.0,90529.0,0.01104618]
[1745332724963,0.01104545,90535.0,90521.0,0.00220919]
[1745332725162,0.01104569,90533.0,90516.0,0.01224589]
[1745332725387,0.28080708,90538.0,90516.0,0.01224589]
[1745332725599,0.01104594,90531.0,90517.0,0.03066736]
[1745332725811,0.23195437,90536.0,90516.0,0.01234884]
[1745332726036,0.01104642,90527.0,90517.0,0.03066579]
[1745332726331,0.11375594,90526.0,90505.0,0.0452]
[1745332726543,0.11375594,90527.0,90516.0,0.01225048]
[1745332726757,0.11375594,90527.0,90505.0,0.0452]
[1745332726968,0.11375594,90527.0,90506.0,0.03067504]
[1745332727630,0.00145967,90538.0,90510.0,0.31599894]
[1745332727850,0.11375594,90537.0,90511.0,0.34]
[1745332728065,0.11375594,90537.0,90512.0,0.03067504]
[1745332728696,0.01250475,90538.0,90520.0,0.31599894]
[1745332728697,0.00145967,90538.0,90520.0,0.31599894]
[1745332728898,0.00145967,90538.0,90521.0,0.20837183]
[1745332729108,0.00145967,90538.0,90522.0,0.03067504]
[1745332729313,0.00145967,90538.0,90522.0,0.14443098]
[1745332729520,0.00145967,90538.0,90523.0,0.03067504]
[1745332730165,0.00145967,90538.0,90525.0,0.34]
[1745332730360,0.00145967,90538.0,90529.0,0.34]
[1745332730566,0.00145967,90538.0,90530.0,0.03067504]
[1745332730717,0.00145967,90538.0,90530.0,0.03288396]
[1745332730929,0.03362351,90556.0,90533.0,0.35454085]
[1745332731192,0.03276136,90556.0,90550.0,0.01454085]
[1745332731360,0.03276136,90556.0,90555.0,0.46829679]
[1745332731529,0.03276136,90556.0,90555.0,0.49897183]
[1745332731735,0.02576136,90556.0,90555.0,0.54837183]
[1745332732310,0.00701735,90559.0,90555.0,0.54837183]
[1745332732484,0.0010235,90580.0,90559.0,0.01454085]
[1745332732735,0.0010235,90580.0,90567.0,0.35454085]
[1745332732939,0.0010235,90580.0,90569.0,0.35454085]
[1745332733145,0.0010235,90580.0,90572.0,0.01454085]
[1745332733354,0.0010235,90580.0,90575.0,0.46829679]
[1745332733562,0.03407818,90576.0,90575.0,0.49897183]
[1745332733797,0.03407818,90576.0,90575.0,0.61553183]
[1745332734403,0.03407818,90576.0,90575.0,0.49897183]
[1745332734608,0.03407818,90576.0,90573.0,0.0952]
[1745332734812,0.03407818,90576.0,90565.0,0.34]
[1745332735017,0.03407818,90576.0,90566.0,0.03050603]
[1745332735372,0.03407818,90576.0,90569.0,0.01454085]
[1745332735572,0.03407818,90576.0,90571.0,0.35454085]
[1745332735773,0.03407818,90576.0,90573.0,0.35454085]
[1745332735976,0.03407818,90576.0,90575.0,0.35454085]
[1745332736181,0.03407818,90576.0,90575.0,0.49876718]
[1745332736771,0.03407818,90576.0,90575.0,0.440336]
[1745332737637,0.03407818,90576.0,90575.0,0.40986561]
[1745332738385,0.03388605,90576.0,90560.0,0.5225641]
[1745332738596,0.03388605,90576.0,90561.0,0.26064362]
[1745332738806,0.03388605,90576.0,90562.0,0.37040768]
[1745332739018,0.03388605,90576.0,90565.0,0.01454085]
[1745332739235,0.03388605,90576.0,90567.0,0.35454085]
[1745332739440,0.02788605,90576.0,90569.0,0.35454085]
[1745332739638,0.02788605,90576.0,90571.0,0.01454085]
[1745332739955,0.02788605,90576.0,90573.0,0.35454085]
[1745332740111,0.02788605,90576.0,90575.0,0.35454085]
[1745332740311,0.02788605,90576.0,90575.0,0.46829679]
[1745332740525,0.0010235,90580.0,90575.0,0.56289679]
[1745332740738,0.0010235,90580.0,90577.0,0.35454085]
[1745332740938,0.0010235,90580.0,90579.0,0.34]
[1745332741135,0.0010235,90580.0,90579.0,0.87045594]
[1745332741368,0.0010235,90580.0,90579.0,0.88499679]
[1745332742169,0.0272,90600.0,90580.0,0.01454085]
[1745332742299,0.02399188,90586.0,90585.0,0.46829679]
[1745332742500,0.0272,90600.0,90586.0,0.35454085]
[1745332742781,0.0272,90600.0,90588.0,0.12829679]
[1745332742957,0.0272,90600.0,90588.0,0.27515178]
[1745332743157,0.0001,90589.0,90588.0,0.27515178]
[1745332743401,0.02771392,90596.0,90590.0,0.01454085]
[1745332743609,0.000423,90613.0,90598.0,0.001]
[1745332743811,0.03562094,90616.0,90613.0,0.4346]
[1745332744020,0.03562094,90616.0,90615.0,0.35454085]
[1745332744229,0.03575871,90616.0,90615.0,0.45375594]
[1745332744430,0.03575871,90616.0,90615.0,0.58477679]
[1745332744638,0.03575871,90616.0,90615.0,1.00967714]
[1745332744844,0.02443468,90651.0,90616.0,0.06184085]
[1745332745048,0.02443468,90651.0,90627.0,0.35454085]
[1745332745255,0.02443468,90651.0,90635.0,0.46829679]
[1745332745862,0.02443468,90651.0,90635.0,0.36749841]
[1745332745983,0.02443468,90651.0,90628.0,0.4167]
[1745332746183,0.02443468,90651.0,90629.0,0.11375594]
[1745332746184,0.03620496,90649.0,90629.0,0.11375594]
[1745332746387,0.0251734,90649.0,90629.0,0.11375594]
[1745332747214,0.0251734,90649.0,90622.0,0.36396]
[1745332747215,0.03204798,90636.0,90630.0,0.11375594]
[1745332747419,0.03204798,90636.0,90631.0,0.11375594]
[1745332747649,0.03204798,90636.0,90623.0,0.11644]
[1745332747650,0.03204798,90636.0,90622.0,0.36396]
[1745332747849,0.03204798,90636.0,90624.0,0.35454085]
[1745332748137,0.03204798,90636.0,90626.0,0.01454085]
[1745332748330,0.03204798,90636.0,90628.0,0.01454085]
[1745332748532,0.03204798,90636.0,90629.0,0.11596228]
[1745332748735,0.03204798,90636.0,90629.0,0.11375594]
[1745332749248,0.03204798,90636.0,90623.0,0.01441684]
[1745332749447,0.03204798,90636.0,90624.0,0.11375594]
[1745332749779,0.03204798,90636.0,90625.0,0.00220642]
[1745332749984,0.03204798,90636.0,90626.0,0.11375594]
[1745332750184,0.03204798,90636.0,90627.0,0.00220635]
[1745332750383,0.03204798,90636.0,90628.0,0.11375594]
[1745332750613,0.03204798,90636.0,90628.0,0.11364384]
[1745332751139,0.03204798,90636.0,90629.0,0.01454085]
[1745332751327,0.03204798,90636.0,90631.0,0.01454085]
[1745332751471,0.03204798,90636.0,90633.0,0.01454085]
[1745332751708,0.03204798,90636.0,90635.0,0.01454085]
[1745332751899,0.03204798,90636.0,90635.0,0.12829679]
[1745332753225,0.03204798,90636.0,90635.0,0.46829679]
[1745332753901,0.0004236,90667.0,90635.0,0.46829679]
[1745332753902,0.0005,90686.0,90682.0,0.001]
[1745332754151,0.1182,90700.0,90691.0,0.01454085]
[1745332754347,0.1182,90700.0,90683.0,0.34]
[1745332754735,0.0154597,90692.0,90682.0,0.01238592]
[1745332754972,0.0084597,90692.0,90671.0,0.34]
[1745332755257,0.0084597,90692.0,90671.0,0.35454085]
[1745332755581,0.0084597,90692.0,90671.0,0.02661356]
[1745332755793,0.047,90691.0,90650.0,0.4731641]
[1745332756007,0.01102547,90699.0,90671.0,0.01216099]
[1745332756200,0.03842198,90697.0,90661.0,0.35454085]
[1745332756383,0.03842198,90697.0,90669.0,0.0123049]
[1745332756384,0.01102645,90691.0,90669.0,0.0123049]
[1745332756592,0.11375594,90691.0,90662.0,0.11375594]
[1745332756787,0.11375594,90691.0,90669.0,0.0120848]
[1745332756941,0.11375594,90691.0,90662.0,0.11375594]
[1745332757141,0.03842198,90697.0,90670.0,0.4731641]
[1745332757374,0.26589792,90697.0,90692.0,0.00056]
[1745332757575,0.01102596,90695.0,90692.0,0.00056]
[1745332757790,0.33427769,90694.0,90692.0,0.00056]
[1745332757934,0.11372,90693.0,90692.0,0.00056]
[1745332758136,0.22697594,90693.0,90692.0,0.00056]
[1745332758350,0.11322,90693.0,90692.0,0.00056]
[1745332758747,0.22697594,90693.0,90692.0,0.00056]
[1745332758952,0.27397594,90693.0,90692.0,0.00056]
[1745332759164,0.49450012,90693.0,90692.0,0.00056]
[1745332759589,0.27397594,90693.0,90692.0,0.00056]
[1745332760227,0.49450012,90693.0,90692.0,0.00056]
[1745332760599,0.49450012,90693.0,90637.0,0.34]
[1745332760600,0.32297594,90693.0,90637.0,0.4167]
[1745332760806,0.01102779,90680.0,90645.0,0.11375594]
[1745332761032,0.11375594,90679.0,90645.0,0.11375594]
[1745332761229,0.12478385,90679.0,90645.0,0.12608875]
[1745332761438,0.34,90692.0,90645.0,0.12608875]
[1745332761439,0.1182,90700.0,90676.0,0.08895659]
[1745332761708,0.01102657,90690.0,90676.0,0.08895659]
[1745332761889,0.2315606,90689.0,90676.0,0.08895659]
[1745332762089,0.01102693,90687.0,90666.0,0.08895659]
[1745332762308,0.01102669,90689.0,90666.0,0.08895659]
[1745332762548,0.01102693,90687.0,90666.0,0.08895659]
[1745332762799,0.22053759,90688.0,90666.0,0.08895659]
[1745332763047,0.11372,90691.0,90666.0,0.08895659]
[1745332763271,0.01102681,90688.0,90666.0,0.08895659]
[1745332763501,0.11372,90691.0,90670.0,0.4731641]
[1745332763704,0.12474645,90691.0,90667.0,0.53045594]
[1745332763910,0.01102742,90683.0,90667.0,0.4167]
[1745332764368,0.01102779,90680.0,90667.0,0.4167]
[1745332764566,0.16075594,90679.0,90667.0,0.4167]
[1745332764780,0.01102742,90683.0,90667.0,0.4167]
[1745332764950,0.11375594,90682.0,90667.0,0.4167]
[1745332766444,0.11372,90681.0,90650.0,0.4731641]
[1745332766797,0.22747594,90681.0,90651.0,0.14398752]
[1745332767004,0.22747594,90681.0,90652.0,0.03023158]
[1745332767206,0.22747594,90681.0,90652.0,0.14398752]